fUSD/lending_fUSD_20250506
["ID","MTS","AMOUNT","RATE_DAILY","PERIOD"]
[360111240,1746552650928,-450.0,0.00019999,2]
[360111241,1746552650938,-247.72,0.00019999,2]
[360111242,1746552650949,-450.0,0.00019999,2]
[360111243,1746552650958,-450.0,0.00019999,2]
[360111244,1746552650968,-264.89,0.00019999,2]
[360111245,1746552650977,-450.0,0.00019999,2]
[360111246,1746552650987,-4839.54,0.00019999,2]
[360111247,1746552650996,-4839.54,0.00019999,2]
[360111248,1746552651006,-4839.54,0.00019999,2]
[360111249,1746552651015,-4839.54,0.00019999,2]
[360111250,1746552651026,-450.0,0.00019999,2]
[360111251,1746552651035,-4839.54,0.00019999,2]
[360111252,1746552651045,-450.0,0.00019999,2]
[360111253,1746552651054,-4839.54,0.00019999,2]
[360111254,1746552651064,-4839.54,0.00019999,2]
[360111255,1746552651073,-4839.54,0.00019999,2]
[360111256,1746552651083,-4839.54,0.00019999,2]
[360111257,1746552651092,-4839.54,0.00019999,2]
[360111258,1746552651101,-4839.54,0.00019999,2]
[360111259,1746552651112,-4839.54,0.00019999,2]
[360111260,1746552651122,-4839.54,0.00019999,2]
[360111261,1746552651132,-4839.54,0.00019999,2]
[360111262,1746552651142,-681.29,0.00019999,2]
[360111263,1746552651152,-450.0,0.00019999,2]
[360111264,1746552651161,-4839.54,0.00019999,2]
[360111265,1746552651172,-681.29,0.00019999,2]
[360111266,1746552651182,-450.0,0.00019999,2]
[360111267,1746552651192,-681.29,0.00019999,2]
[360111268,1746552651201,-450.0,0.00019999,2]
[360111269,1746552651211,-4839.54,0.00019999,2]
[360111270,1746552651221,-681.29,0.00019999,2]
[360111271,1746552651231,-450.0,0.00019999,2]
[360111272,1746552651240,-4839.54,0.00019999,2]
[360111273,1746552651251,-681.29,0.00019999,2]
[360111274,1746552651261,-450.0,0.00019999,2]
[360111275,1746552651271,-4839.54,0.00019999,2]
[360111276,1746552651281,-681.29,0.00019999,2]
[360111277,1746552651291,-450.0,0.00019999,2]
[360111278,1746552651300,-4839.54,0.00019999,2]
[360111279,1746552651310,-681.29,0.00019999,2]
[360111280,1746552651320,-450.0,0.00019999,2]
[360111281,1746552651329,-4839.54,0.00019999,2]
[360111282,1746552651339,-681.29,0.00019999,2]
[360111283,1746552651349,-450.0,0.00019999,2]
[360111284,1746552651359,-681.29,0.00019999,2]
[360111285,1746552651369,-450.0,0.00019999,2]
[360111286,1746552651378,-4839.6437,0.00019999,2]
[360111287,1746552651387,-681.29,0.00019999,2]
[360111288,1746552651398,-450.0,0.00019999,2]
[360111289,1746552651408,-681.29,0.00019999,2]
[360111290,1746552651417,-450.0,0.00019999,2]
[360111291,1746552651427,-681.29,0.00019999,2]
[360111292,1746552651437,-450.0,0.00019999,2]
[360111293,1746552651446,-450.0,0.00019999,2]
[360111294,1746552651456,-450.0,0.00019999,2]
[360111295,1746552651465,-681.29,0.00019999,2]
[360111296,1746552651475,-450.0,0.00019999,2]
[360111297,1746552651484,-681.29,0.00019999,2]
[360111298,1746552651495,-375.36,0.00019999,2]
[360111299,1746552651505,-681.29,0.00019999,2]
[360111300,1746552651514,-681.29,0.00019999,2]
[360111301,1746552651524,-681.29,0.00019999,2]
[360111302,1746552651535,-681.29,0.00019999,2]
[360111303,1746552651544,-681.29,0.00019999,2]
[360111304,1746552651554,-681.29,0.00019999,2]
[360111305,1746552651564,-681.35,0.00019999,2]
[360111306,1746552651577,-450.0,0.00019999,2]
[360111307,1746552651587,-450.0,0.00019999,2]
[360111308,1746552651596,-450.0,0.00019999,2]
[360111309,1746552651605,-450.0,0.00019999,2]
[360111310,1746552651616,-343.77,0.00019999,2]
[360111311,1746552651626,-240.44,0.00019999,2]
[360111312,1746552651635,-450.0,0.00019999,2]
[360111313,1746552651645,-450.0,0.00019999,2]
[360111314,1746552651656,-588.02731655,0.00019999,2]
[360111315,1746552651666,-262.16,0.00019999,2]
[360111316,1746552651675,-450.0,0.00019999,2]
[360111317,1746552651684,-450.0,0.00019999,2]
[360111318,1746552651695,-450.0,0.00019999,2]
[360111319,1746552651704,-450.0,0.00019999,2]
[360111320,1746552651714,-490.0,0.00019999,2]
[360111321,1746552651723,-450.0,0.00019999,2]
[360111322,1746552651733,-450.0,0.00019999,2]
[360111323,1746552651743,-450.0,0.00019999,2]
[360111324,1746552651753,-450.0,0.00019999,2]
[360111325,1746552651763,-450.0,0.00019999,2]
[360111326,1746552651772,-450.0,0.00019999,2]
[360111327,1746552651782,-450.0,0.00019999,2]
[360111328,1746552651791,-450.0,0.00019999,2]
[360111329,1746552651801,-450.0,0.00019999,2]
[360111330,1746552651811,-450.0,0.00019999,2]
[360111331,1746552651820,-474.37562072,0.00019999,2]
[360111332,1746552651830,-506.64,0.00019999,2]
[360111333,1746552651839,-450.0,0.00019999,2]
[360111334,1746552651849,-563.75,0.00019999,2]
[360111335,1746552651858,-450.0,0.00019999,2]
[360111336,1746552651867,-450.0,0.00019999,2]
[360111337,1746552651877,-450.0,0.00019999,2]
[360111338,1746552651887,-540.19571517,0.00019999,2]
[360111339,1746552651897,-266.09,0.00019999,2]
[360111340,1746552651906,-450.0,0.00019999,2]
[360111341,1746552651915,-543.02,0.00019999,2]
[360111342,1746552651925,-450.0,0.00019999,2]
[360111343,1746552651934,-450.0,0.00019999,2]
[360111344,1746552651944,-450.0,0.00019999,2]
[360111345,1746552651954,-450.0,0.00019999,2]
[360111346,1746552651963,-450.0,0.00019999,2]
[360111347,1746552651972,-450.0,0.00019999,2]
[360111348,1746552651983,-234.26,0.00019999,2]
[360111349,1746552651992,-450.0,0.00019999,2]
[360111350,1746552652001,-450.0,0.00019999,2]
[360111351,1746552652011,-450.0,0.00019999,2]
[360111352,1746552652020,-515.67,0.00019999,2]
[360111353,1746552652029,-450.0,0.00019999,2]
[360111354,1746552652039,-450.0,0.00019999,2]
[360111355,1746552652048,-570.03,0.00019999,2]
[360111356,1746552652058,-245.65,0.00019999,2]
[360111357,1746552652067,-450.0,0.00019999,2]
[360111358,1746552652076,-450.0,0.00019999,2]
[360111359,1746552652086,-450.0,0.00019999,2]
[360111360,1746552652095,-450.0,0.00019999,2]
[360111361,1746552652105,-450.0,0.00019999,2]
[360111362,1746552652114,-450.0,0.00019999,2]
[360111363,1746552652123,-450.0,0.00019999,2]
[360111364,1746552652132,-450.0,0.00019999,2]
[360111365,1746552652141,-450.0,0.00019999,2]
[360111366,1746552652151,-214.68,0.00019999,2]
[360111367,1746552652160,-450.0,0.00019999,2]
[360111368,1746552652170,-450.0,0.00019999,2]
[360111369,1746552652180,-450.0,0.00019999,2]
[360111370,1746552652189,-450.0,0.00019999,2]
[360111371,1746552652199,-462.31,0.00019999,2]
[360111372,1746552652208,-450.0,0.00019999,2]
[360111373,1746552652217,-450.0,0.00019999,2]
[360111374,1746552652227,-450.0,0.00019999,2]
[360111375,1746552652236,-450.0,0.00019999,2]
[360111376,1746552652246,-540.1,0.00019999,2]
[360111377,1746552652255,-633.48,0.00019999,2]
[360111378,1746552652264,-633.48,0.00019999,2]
[360111379,1746552652274,-964.27,0.00019999,2]
[360111380,1746552652283,-633.48,0.00019999,2]
[360111381,1746552652293,-964.27,0.00019999,2]
[360111382,1746552652302,-633.48,0.00019999,2]
[360111383,1746552652312,-964.27,0.00019999,2]
[360111384,1746552652321,-633.48,0.00019999,2]
[360111385,1746552652331,-964.27,0.00019999,2]
[360111386,1746552652341,-633.48,0.00019999,2]
[360111387,1746552652351,-964.27,0.00019999,2]
[360111388,1746552652361,-633.48,0.00019999,2]
[360111389,1746552652370,-964.27,0.00019999,2]
[360111390,1746552652380,-633.48,0.00019999,2]
[360111391,1746552652389,-964.27,0.00019999,2]
[360111392,1746552652401,-633.48,0.00019999,2]
[360111393,1746552652410,-964.27,0.00019999,2]
[360111394,1746552652420,-633.48,0.00019999,2]
[360111395,1746552652430,-964.27,0.00019999,2]
[360111396,1746552652440,-633.48,0.00019999,2]
[360111397,1746552652449,-964.27,0.00019999,2]
[360111398,1746552652459,-633.48,0.00019999,2]
[360111399,1746552652469,-964.27,0.00019999,2]
[360111400,1746552652479,-964.27,0.00019999,2]
[360111401,1746552652489,-964.27,0.00019999,2]
[360111402,1746552652499,-633.48,0.00019999,2]
[360111403,1746552652509,-964.27,0.00019999,2]
[360111404,1746552652519,-633.48,0.00019999,2]
[360111405,1746552652529,-964.27,0.00019999,2]
[360111406,1746552652538,-633.48,0.00019999,2]
[360111407,1746552652548,-964.27,0.00019999,2]
[360111408,1746552652558,-450.0,0.00019999,2]
[360111409,1746552652567,-633.48,0.00019999,2]
[360111410,1746552652581,-450.0,0.00019999,2]
[360111411,1746552652591,-964.27,0.00019999,2]
[360111412,1746552652601,-633.48,0.00019999,2]
[360111413,1746552652611,-242.72,0.00019999,2]
[360111414,1746552652622,-964.27,0.00019999,2]
[360111415,1746552652631,-633.48,0.00019999,2]
[360111416,1746552652641,-964.27,0.00019999,2]
[360111417,1746552652651,-964.27,0.00019999,2]
[360111418,1746552652661,-633.63,0.00019999,2]
[360111419,1746552652670,-450.0,0.00019999,2]
[360111420,1746552652680,-964.29,0.00019999,2]
[360111421,1746552652689,-450.0,0.00019999,2]
[360111422,1746552652699,-450.0,0.00019999,2]
[360111423,1746552652708,-450.0,0.00019999,2]
[360111424,1746552652718,-450.0,0.00019999,2]
[360111425,1746552652727,-450.0,0.00019999,2]
[360111426,1746552652737,-450.0,0.00019999,2]
[360111427,1746552652747,-450.0,0.00019999,2]
[360111428,1746552652757,-450.0,0.00019999,2]
[360111429,1746552652766,-450.0,0.00019999,2]
[360111430,1746552652775,-450.0,0.00019999,2]
[360111431,1746552652785,-450.0,0.00019999,2]
[360111432,1746552652795,-450.0,0.00019999,2]
[360111433,1746552652804,-450.0,0.00019999,2]
[360111434,1746552652814,-450.0,0.00019999,2]
[360111435,1746552652824,-450.0,0.00019999,2]
[360111436,1746552652833,-450.0,0.00019999,2]
[360111437,1746552652843,-453.00257842,0.00019999,2]
[360111438,1746552652853,-751.14,0.00019999,2]
[360111439,1746552653009,-751.14,0.00019999,2]
[360111440,1746552653018,-751.14,0.00019999,2]
[360111441,1746552653028,-751.14,0.00019999,2]
[360111442,1746552653037,-751.14,0.00019999,2]
[360111443,1746552653047,-492.87,0.00019999,2]
[360111444,1746552653056,-751.14,0.00019999,2]
[360111445,1746552653065,-751.14,0.00019999,2]
[360111446,1746552653074,-751.14,0.00019999,2]
[360111447,1746552653084,-751.14,0.00019999,2]
[360111448,1746552653093,-450.0,0.00019999,2]
[360111449,1746552653103,-450.0,0.00019999,2]
[360111450,1746552653114,-751.14,0.00019999,2]
[360111451,1746552653124,-450.0,0.00019999,2]
[360111452,1746552653133,-479.71,0.00019999,2]
[360111453,1746552653143,-751.14,0.00019999,2]
[360111454,1746552653152,-751.14,0.00019999,2]
[360111455,1746552653162,-751.14,0.00019999,2]
[360111456,1746552653171,-751.14,0.00019999,2]
[360111457,1746552653180,-751.14,0.00019999,2]
[360111458,1746552653190,-751.14,0.00019999,2]
[360111459,1746552653200,-450.0,0.00019999,2]
[360111460,1746552653209,-751.14,0.00019999,2]
[360111461,1746552653219,-450.0,0.00019999,2]
[360111462,1746552653228,-751.14,0.00019999,2]
[360111463,1746552653238,-450.0,0.00019999,2]
[360111464,1746552653248,-751.14,0.00019999,2]
[360111465,1746552653258,-450.0,0.00019999,2]
[360111466,1746552653267,-751.14,0.00019999,2]
[360111467,1746552653277,-751.31,0.00019999,2]
[360111468,1746552653287,-215.95,0.00019999,2]
[360111469,1746552653296,-463.47,0.00019999,2]
[360111470,1746552653305,-463.47,0.00019999,2]
[360111471,1746552653315,-463.47,0.00019999,2]
[360111472,1746552653324,-463.47,0.00019999,2]
[360111473,1746552653333,-463.47,0.00019999,2]
[360111474,1746552653343,-463.47,0.00019999,2]
[360111475,1746552653352,-463.47,0.00019999,2]
[360111476,1746552653361,-463.47,0.00019999,2]
[360111477,1746552653371,-463.47,0.00019999,2]
[360111478,1746552653380,-463.47,0.00019999,2]
[360111479,1746552653389,-463.47,0.00019999,2]
[360111480,1746552653399,-463.47,0.00019999,2]
[360111481,1746552653408,-463.47,0.00019999,2]
[360111482,1746552653418,-463.47,0.00019999,2]
[360111483,1746552653427,-463.47,0.00019999,2]
[360111484,1746552653438,-463.47,0.00019999,2]
[360111485,1746552653447,-463.47,0.00019999,2]
[360111486,1746552653459,-463.47,0.00019999,2]
[360111487,1746552653468,-463.47,0.00019999,2]
[360111488,1746552653477,-450.0,0.00019999,2]
[360111489,1746552653486,-463.47,0.00019999,2]
[360111490,1746552653496,-450.0,0.00019999,2]
[360111491,1746552653505,-463.66,0.00019999,2]
[360111492,1746552653515,-222.52,0.00019999,2]
[360111493,1746552653524,-485.97,0.00019999,2]
[360111494,1746552653533,-485.97,0.00019999,2]
[360111495,1746552653542,-485.97,0.00019999,2]
[360111496,1746552653551,-450.0,0.00019999,2]
[360111497,1746552653561,-485.97,0.00019999,2]
[360111498,1746552653571,-450.0,0.00019999,2]
[360111499,1746552653583,-485.97,0.00019999,2]
[360111500,1746552653592,-507.04,0.00019999,2]
[360111501,1746552653602,-485.97,0.00019999,2]
[360111502,1746552653611,-485.97,0.00019999,2]
[360111503,1746552653620,-485.97,0.00019999,2]
[360111504,1746552653629,-485.97,0.00019999,2]
[360111505,1746552653639,-485.97,0.00019999,2]
[360111506,1746552653648,-485.97,0.00019999,2]
[360111507,1746552653657,-485.97,0.00019999,2]
[360111508,1746552653667,-485.97,0.00019999,2]
[360111509,1746552653676,-485.97,0.00019999,2]
[360111510,1746552653685,-485.97,0.00019999,2]
[360111511,1746552653694,-485.97,0.00019999,2]
[360111512,1746552653703,-485.97,0.00019999,2]
[360111513,1746552653712,-485.97,0.00019999,2]
[360111514,1746552653721,-485.97,0.00019999,2]
[360111515,1746552653730,-485.97,0.00019999,2]
[360111516,1746552653739,-486.1871,0.00019999,2]
[360111517,1746552653748,-450.0,0.00019999,2]
[360111518,1746552653757,-450.0,0.00019999,2]
[360111519,1746552653767,-450.0,0.00019999,2]
[360111520,1746552653776,-450.0,0.00019999,2]
[360111521,1746552653785,-450.0,0.00019999,2]
[360111522,1746552653795,-450.0,0.00019999,2]
[360111523,1746552653804,-578.04,0.00019999,2]
[360111524,1746552653813,-159.52,0.00019999,2]
[360111525,1746552653823,-150.0,0.00019999,2]
[360111526,1746552653833,-150.0,0.00019999,2]
[360111527,1746552653843,-150.0,0.00019999,2]
[360111528,1746552653853,-545.43,0.00019999,2]
[360111529,1746552653862,-150.0,0.00019999,2]
[360111530,1746552653872,-150.0,0.00019999,2]
[360111531,1746552653882,-450.0,0.00019999,2]
[360111532,1746552653893,-450.0,0.00019999,2]
[360111533,1746552653902,-387.26,0.00019999,2]
[360111534,1746552653912,-150.0,0.00019999,2]
[360111535,1746552653922,-150.0,0.00019999,2]
[360111536,1746552653931,-171.23498485,0.00019999,2]
[360111537,1746552653940,-450.0,0.00019999,2]
[360111538,1746552653949,-450.0,0.00019999,2]
[360111539,1746552653958,-450.0,0.00019999,2]
[360111540,1746552653967,-450.0,0.00019999,2]
[360111541,1746552653976,-450.0,0.00019999,2]
[360111542,1746552653985,-450.0,0.00019999,2]
[360111543,1746552653994,-450.0,0.00019999,2]
[360111544,1746552654003,-450.0,0.00019999,2]
[360111545,1746552654012,-450.0,0.00019999,2]
[360111546,1746552654022,-450.0,0.00019999,2]
[360111547,1746552654031,-450.0,0.00019999,2]
[360111548,1746552654040,-450.0,0.00019999,2]
[360111549,1746552654050,-450.0,0.00019999,2]
[360111550,1746552654059,-450.0,0.00019999,2]
[360111551,1746552654068,-450.0,0.00019999,2]
[360111552,1746552654077,-450.0,0.00019999,2]
[360111553,1746552654087,-450.0,0.00019999,2]
[360111554,1746552654096,-450.0,0.00019999,2]
[360111555,1746552654107,-450.0,0.00019999,2]
[360111556,1746552654118,-450.0,0.00019999,2]
[360111557,1746552654127,-450.0,0.00019999,2]
[360111558,1746552654136,-450.0,0.00019999,2]
[360111559,1746552654146,-450.0,0.00019999,2]
[360111560,1746552654155,-450.0,0.00019999,2]
[360111561,1746552654164,-450.0,0.00019999,2]
[360111562,1746552654174,-450.0,0.00019999,2]
[360111563,1746552654183,-450.0,0.00019999,2]
[360111564,1746552654192,-450.0,0.00019999,2]
[360111565,1746552654201,-450.0,0.00019999,2]
[360111566,1746552654210,-450.0,0.00019999,2]
[360111567,1746552654219,-450.0,0.00019999,2]
[360111568,1746552654229,-450.0,0.00019999,2]
[360111569,1746552654238,-450.0,0.00019999,2]
[360111570,1746552654247,-519.61,0.00019999,2]
[360111571,1746552654256,-218.75,0.00019999,2]
[360111572,1746552654266,-6664.61,0.00019999,2]
[360111573,1746552654276,-6664.61,0.00019999,2]
[360111574,1746552654285,-6664.61,0.00019999,2]
[360111575,1746552654295,-6664.61,0.00019999,2]
[360111576,1746552654304,-6664.61,0.00019999,2]
[360111577,1746552654313,-6664.61,0.00019999,2]
[360111578,1746552654323,-6664.61,0.00019999,2]
[360111579,1746552654332,-6664.61,0.00019999,2]
[360111580,1746552654342,-6664.61,0.00019999,2]
[360111581,1746552654352,-6664.61,0.00019999,2]
[360111582,1746552654362,-6664.61,0.00019999,2]
[360111583,1746552654372,-6664.61,0.00019999,2]
[360111584,1746552654382,-6664.61,0.00019999,2]
[360111585,1746552654392,-6664.61,0.00019999,2]
[360111586,1746552654402,-6664.61,0.00019999,2]
[360111587,1746552654412,-450.0,0.00019999,2]
[360111588,1746552654422,-6664.61,0.00019999,2]
[360111589,1746552654433,-561.59754867,0.00019999,2]
[360111590,1746552654443,-551.91,0.00019999,2]
[360111591,1746552654453,-6664.61,0.00019999,2]
[360111592,1746552654462,-551.91,0.00019999,2]
[360111593,1746552654471,-6664.61,0.00019999,2]
[360111594,1746552654481,-551.91,0.00019999,2]
[360111595,1746552654491,-6664.61,0.00019999,2]
[360111596,1746552654500,-6664.61,0.00019999,2]
[360111597,1746552654509,-551.91,0.00019999,2]
[360111598,1746552654519,-551.91,0.00019999,2]
[360111599,1746552654528,-6664.6776,0.00019999,2]
[360111600,1746552654538,-551.91,0.00019999,2]
[360111601,1746552654547,-450.0,0.00019999,2]
[360111602,1746552654557,-551.91,0.00019999,2]
[360111603,1746552654566,-450.0,0.00019999,2]
[360111604,1746552654580,-551.91,0.00019999,2]
[360111605,1746552654589,-257.8,0.00019999,2]
[360111606,1746552654598,-551.91,0.00019999,2]
[360111607,1746552654608,-551.91,0.00019999,2]
[360111608,1746552654618,-551.91,0.00019999,2]
[360111609,1746552654628,-551.91,0.00019999,2]
[360111610,1746552654638,-551.91,0.00019999,2]
[360111611,1746552654648,-551.91,0.00019999,2]
[360111612,1746552654658,-551.91,0.00019999,2]
[360111613,1746552654668,-551.91,0.00019999,2]
[360111614,1746552654678,-551.91,0.00019999,2]
[360111615,1746552654688,-551.91,0.00019999,2]
[360111616,1746552654698,-552.00999999,0.00019999,2]
[360111617,1746552654708,-450.0,0.00019999,2]
[360111618,1746552654717,-489.49,0.00019999,2]
[360111619,1746552654726,-455.82,0.00019999,2]
[360111620,1746552654736,-455.82,0.00019999,2]
[360111621,1746552654746,-455.82,0.00019999,2]
[360111622,1746552654757,-455.82,0.00019999,2]
[360111623,1746552654766,-455.82,0.00019999,2]
[360111624,1746552654776,-455.82,0.00019999,2]
[360111625,1746552654786,-455.82,0.00019999,2]
[360111626,1746552654796,-455.82,0.00019999,2]
[360111627,1746552654805,-455.82,0.00019999,2]
[360111628,1746552654814,-455.82,0.00019999,2]
[360111629,1746552654824,-455.82,0.00019999,2]
[360111630,1746552654834,-700.0,0.00019999,2]
[360111631,1746552654843,-273.37066052,0.0002,2]
[360111632,1746552654853,-488422.53819413,0.0002,2]
[360111633,1746552654863,-625.0,0.0002,2]
[360111634,1746552654874,-798.0,0.0002,2]
[360111635,1746552654883,-1243.0,0.0002,2]
[360111636,1746552654892,-1452.0,0.0002,2]
[360111637,1746552654903,-916.0,0.0002,2]
[360111638,1746552654912,-582.0,0.0002,2]
[360111639,1746552654921,-551.0,0.0002,2]
[360111640,1746552654931,-1138.0,0.0002,2]
[360111641,1746552654940,-5933.0,0.0002,2]
[360111642,1746552654950,-275.675,0.0002,2]
[360111643,1746552654959,-6764.0,0.0002,2]
[360111644,1746552654969,-4015.0,0.0002,2]
[360111645,1746552654979,-1430.157,0.0002,2]
[360111646,1746552654988,-150.0,0.0002,4]
[360111647,1746552654997,-131652.857166,0.0002,2]
[360111648,1746552655225,-455.82,0.00019999,2]
[360111649,1746552655235,-25974.45003663,0.0002,2]
[360111650,1746552655258,-383.329128,0.0001981,2]
[360111651,1746552655270,-66.670872,0.0001981,2]
[360111652,1746552655279,-3403.7163241,0.0002,2]
[360111653,1746552655298,-450.0,0.0002,2]
[360111654,1746552655316,-539.41681615,0.0002,2]
[360111655,1746552655423,-164.62044866,0.0002,2]
[360111656,1746552655600,-317.8546284,0.0001981,2]
[360111657,1746552655617,-279.53486615,0.0001981,2]
[360111658,1746552655627,-450.0,0.0001981,2]
[360111659,1746552655638,-428.28567236,0.0001981,2]
[360111660,1746552655650,-470.0,0.00019897,2]
[360111661,1746552655660,-327.32879611,0.00019899,2]
[360111662,1746552655672,-122.67120389,0.00019899,2]
[360111663,1746552655682,-228.33340788,0.00019995,2]
[360111664,1746552655694,-221.66659212,0.00019995,2]
[360111665,1746552655705,-132.25340788,0.00019998,2]
[360111666,1746552655717,-317.74659212,0.00019998,2]
[360111667,1746552655726,-442.53,0.00019998,2]
[360111668,1746552655736,-455.82,0.00019999,2]
[360111669,1746552655747,-455.82,0.00019999,2]
[360111670,1746552655756,-455.82,0.00019999,2]
[360111671,1746552655765,-455.82,0.00019999,2]
[360111672,1746552655774,-455.82,0.00019999,2]
[360111673,1746552655784,-455.82,0.00019999,2]
[360111674,1746552655793,-455.82,0.00019999,2]
[360111675,1746552655802,-455.82,0.00019999,2]
[360111676,1746552655811,-455.89,0.00019999,2]
[360111677,1746552655821,-878.0,0.0002,2]
[360111678,1746552655830,-11490.53871621,0.0002,2]
[360111679,1746552655841,-1012.49932772,0.0002,2]
[360111680,1746552655852,-272.0374,0.0002,2]
[360111681,1746552655863,-810.06397819,0.0002,2]
[360111682,1746552655976,-450.0,0.0001981,2]
[360111683,1746552655986,-169.00868661,0.00019897,2]
[360111684,1746552655996,-450.0,0.00019898,2]
[360111685,1746552656005,-450.0,0.00019994,2]
[360111686,1746552656014,-450.0,0.00019998,2]
[360111687,1746552656023,-65.43186133,0.00019999,2]
[360111688,1746552657242,-384.56813867,0.00019999,2]
[360111689,1746552657253,-3200.49186133,0.0002,2]
[360111690,1746552657269,-2073.40750912,0.0002,2]
[360111691,1746552657280,-1124.28529312,0.0002,2]
[360111692,1746552657292,-1950.0,0.0002,2]
[360111693,1746552674338,258.11378919,0.0003,30]
[360111694,1746552697111,150.0,0.00019036,2]
[360111695,1746552710500,-152.36722608,0.00019508,2]
[360111696,1746552723367,-36.39689692,0.00019508,2]
[360111697,1746552756661,171.69,0.00019,2]
[360111698,1746552757121,171.69,0.00025333,120]
[360111699,1746552757354,171.69,0.000285,120]
[360111700,1746552792441,152.88,0.000298,31]
[360111701,1746552792500,152.88,0.000298,31]
[360111702,1746552792560,152.88,0.000298,31]
[360111703,1746552792617,152.88,0.000298,31]
[360111704,1746552792937,152.88,0.000298,31]
[360111705,1746552792978,152.88,0.000298,31]
[360111706,1746552793030,152.88,0.000298,31]
[360111707,1746552897606,200.0,0.00019053,2]
[360111708,1746552919251,23900.0,0.00019064,2]
[360111709,1746553045836,1500.0,0.00019178,2]
[360111710,1746553219714,2254.14,0.00018931,2]
[360111711,1746553420450,155.1,0.00018856,2]
[360111712,1746553462311,250.0,0.00019064,2]
[360111713,1746553502326,1000.0,0.00019064,2]
[360111714,1746553502565,322.8,0.00019064,2]
[360111715,1746553524652,150.0,0.00018,2]
[360111716,1746553524700,150.0,0.00018667,2]
[360111717,1746553524774,150.0,0.00019333,4]
[360111718,1746553559865,14107.84,0.00019064,2]
[360111719,1746553596794,250.0,0.00017,2]
[360111720,1746553597875,300.0,0.00019,2]
[360111721,1746553790822,151.27,0.00019064,2]
[360111724,1746553803179,1182.74,0.00016983,2]
[360111725,1746553803391,1182.74,0.00019247,2]
[360111729,1746553831615,-164.06,0.00019607,2]
[360111730,1746553831624,-200.0,0.00019608,2]
[360111731,1746553831635,-200.0,0.00019608,2]
[360111732,1746553831644,-160.05652513,0.00019609,2]
[360111733,1746553831664,-24.99675236,0.00019609,2]
[360111734,1746553831673,-389.93793726,0.000197,2]
[360111735,1746553831682,-161.91063826,0.00019709,2]
[360111736,1746553831693,-277.75070436,0.00019709,2]
[360111737,1746553831704,-760.33865738,0.00019709,2]
[360111738,1746553831713,-152.3672,0.00019709,2]
[360111739,1746553831722,-1116.4952,0.0001971,2]
[360111740,1746553831731,-2022.3081,0.0001971,2]
[360111741,1746553831740,-207.4,0.00019797,2]
[360111742,1746553831750,-300.0,0.00019806,2]
[360111743,1746553831759,-128.71922844,0.00019807,2]
[360111752,1746553837488,-171.28077156,0.00019807,2]